[Event "Titled Tuesday Blitz June 14 Late 2022"]
[White "Pinheiro, Iung Alicio de O."]
[Black "Steinberg, Nitzan"]
[WhiteFideId "2104350"]
[BlackFideId "2801795"]
[WhiteElo "2283"]
[BlackElo "2471"]
[Result "1-0"]
[Round "03"]
[TimeControl "180+1"]
[Date "2022.06.14"]
[WhiteClock "0:00:17"]
[BlackClock "0:00:08"]

1. e4 {[%clk 0:02:59]}  g6 {[%clk 0:03:00]} 2. d4 {[%clk 0:02:59]}  Bg7 {[%clk 0:03:00]} 3. Nc3 {[%clk 0:02:58]}  d6 {[%clk 0:03:01]} 4. Be3 {[%clk 0:02:54]}  a6 {[%clk 0:03:01]} 5. Qd2 {[%clk 0:02:53]}  b5 {[%clk 0:03:01]} 6. h4 {[%clk 0:02:53]}  h5 {[%clk 0:03:00]} 7. f3 {[%clk 0:02:53]}  Nd7 {[%clk 0:02:59]} 8. Nh3 {[%clk 0:02:53]}  Bb7 {[%clk 0:02:57]} 9. Ng5 {[%clk 0:02:53]}  c5 {[%clk 0:02:55]} 10. a4 {[%clk 0:02:52]}  b4 {[%clk 0:02:52]} 11. Bc4 {[%clk 0:02:51]}  e6 {[%clk 0:02:37]} 12. Ne2 {[%clk 0:02:50]}  Ngf6 {[%clk 0:02:10]} 13. Nf4 {[%clk 0:02:12]}  cxd4 {[%clk 0:01:48]} 14. Bxd4 {[%clk 0:02:11]}  Ne5 {[%clk 0:01:47]} 15. Bb3 {[%clk 0:01:48]}  a5 {[%clk 0:01:36]} 16. Rd1 {[%clk 0:01:27]}  Qc7 {[%clk 0:01:22]} 17. Qf2 {[%clk 0:00:54]}  Ba6 {[%clk 0:01:00]} 18. Nfxe6 {[%clk 0:00:37]}  fxe6 {[%clk 0:00:59]} 19. Nxe6 {[%clk 0:00:37]}  Qe7 {[%clk 0:00:55]} 20. Bxe5 {[%clk 0:00:33]}  dxe5 {[%clk 0:00:55]} 21. Ng5 {[%clk 0:00:25]}  Qa7 {[%clk 0:00:36]} 22. Qd2 {[%clk 0:00:19]}  Qd4 {[%clk 0:00:24]} 23. Qxd4 {[%clk 0:00:18]}  exd4 {[%clk 0:00:24]} 24. Rxd4 {[%clk 0:00:19]}  Ke7 {[%clk 0:00:20]} 25. e5 {[%clk 0:00:17]}  Nd7 {[%clk 0:00:20]} 26. f4 {[%clk 0:00:17]}  Nc5 {[%clk 0:00:21]} 27. Bd5 {[%clk 0:00:14]}  Rhd8 {[%clk 0:00:20]} 28. Kf2 {[%clk 0:00:14]}  Rac8 {[%clk 0:00:19]} 29. Rhd1 {[%clk 0:00:15]}  Nxa4 {[%clk 0:00:18]} 30. Be4 {[%clk 0:00:14]}  Rxd4 {[%clk 0:00:17]} 31. Rxd4 {[%clk 0:00:15]}  Nxb2 {[%clk 0:00:15]} 32. Bxg6 {[%clk 0:00:16]}  Na4 {[%clk 0:00:10]} 33. Bf5 {[%clk 0:00:15]}  Nc5 {[%clk 0:00:06]} 34. Bxc8 {[%clk 0:00:15]}  Bxc8 {[%clk 0:00:06]} 35. Rc4 {[%clk 0:00:13]}  Ne6 {[%clk 0:00:04]} 36. Rxc8 {[%clk 0:00:13]}  Nxf4 {[%clk 0:00:05]} 37. Rc7+ {[%clk 0:00:12]}  Kf8 {[%clk 0:00:04]} 38. Rf7+ {[%clk 0:00:13]}  Kg8 {[%clk 0:00:05]} 39. Rxf4 {[%clk 0:00:13]}  Bxe5 {[%clk 0:00:04]} 40. Re4 {[%clk 0:00:14]}  Bc3 {[%clk 0:00:04]} 41. Ke2 {[%clk 0:00:14]}  a4 {[%clk 0:00:04]} 42. Re8+ {[%clk 0:00:14]}  Kg7 {[%clk 0:00:04]} 43. Ra8 {[%clk 0:00:15]}  a3 {[%clk 0:00:05]} 44. Kd3 {[%clk 0:00:15]}  Kg6 {[%clk 0:00:05]} 45. Ne4 {[%clk 0:00:16]}  Bb2 {[%clk 0:00:05]} 46. Ra4 {[%clk 0:00:15]}  Kf5 {[%clk 0:00:05]} 47. Nd2 {[%clk 0:00:15]}  Kg4 {[%clk 0:00:05]} 48. Nc4 {[%clk 0:00:16]}  Kxh4 {[%clk 0:00:04]} 49. Nxb2 {[%clk 0:00:16]}  axb2 {[%clk 0:00:05]} 50. Rxb4+ {[%clk 0:00:16]}  Kg3 {[%clk 0:00:06]} 51. Rxb2 {[%clk 0:00:16]}  Kxg2 {[%clk 0:00:07]} 52. Rb4 {[%clk 0:00:17]}  h4 {[%clk 0:00:08]} 53. Rxh4 {[%clk 0:00:17]} 1-0


[Site "https://www.chess.com"]

[Event "Titled Tuesday Blitz June 14 Late 2022"]
[White "Przybylski, Wojciech"]
[Black "Livaic, Leon"]
[WhiteFideId "1117599"]
[BlackFideId "14531534"]
[WhiteElo "2133"]
[BlackElo "2540"]
[Result "1-0"]
[Round "03"]
[TimeControl "180+1"]
[Date "2022.06.14"]
[WhiteClock "0:00:04"]
[BlackClock "0:00:02"]

1. d4 {[%clk 0:03:00]}  e6 {[%clk 0:02:59]} 2. e4 {[%clk 0:03:00]}  d5 {[%clk 0:02:59]} 3. Nc3 {[%clk 0:03:00]}  Bb4 {[%clk 0:02:59]} 4. a3 {[%clk 0:02:59]}  Bxc3+ {[%clk 0:02:59]} 5. bxc3 {[%clk 0:03:00]}  dxe4 {[%clk 0:03:00]} 6. Qg4 {[%clk 0:03:00]}  Nf6 {[%clk 0:03:01]} 7. Qxg7 {[%clk 0:03:00]}  Rg8 {[%clk 0:03:01]} 8. Qh6 {[%clk 0:03:00]}  c5 {[%clk 0:03:01]} 9. Ne2 {[%clk 0:02:59]}  cxd4 {[%clk 0:03:02]} 10. cxd4 {[%clk 0:02:59]}  Nc6 {[%clk 0:03:02]} 11. Qe3 {[%clk 0:02:57]}  Bd7 {[%clk 0:02:48]} 12. c4 {[%clk 0:02:56]}  Rc8 {[%clk 0:02:44]} 13. Ng3 {[%clk 0:02:46]}  Qb6 {[%clk 0:02:18]} 14. c5 {[%clk 0:02:30]}  Qa5+ {[%clk 0:02:18]} 15. Bd2 {[%clk 0:02:29]}  Qa4 {[%clk 0:02:18]} 16. Be2 {[%clk 0:02:25]}  Nxd4 {[%clk 0:01:59]} 17. Bd1 {[%clk 0:02:23]}  Qc4 {[%clk 0:01:41]} 18. Rc1 {[%clk 0:02:16]}  Qd3 {[%clk 0:01:41]} 19. Bc3 {[%clk 0:01:21]}  e5 {[%clk 0:01:11]} 20. Qxd3 {[%clk 0:01:14]}  exd3 {[%clk 0:01:12]} 21. Bxd4 {[%clk 0:01:10]}  exd4 {[%clk 0:01:13]} 22. Kd2 {[%clk 0:01:08]}  Bb5 {[%clk 0:01:11]} 23. Re1+ {[%clk 0:00:58]}  Kf8 {[%clk 0:01:11]} 24. Bf3 {[%clk 0:00:43]}  Rg5 {[%clk 0:01:08]} 25. Bxb7 {[%clk 0:00:29]}  Rcxc5 {[%clk 0:01:08]} 26. f4 {[%clk 0:00:23]}  Rxc1 {[%clk 0:00:54]} 27. Rxc1 {[%clk 0:00:23]}  Rg4 {[%clk 0:00:53]} 28. Rc8+ {[%clk 0:00:15]}  Ne8 {[%clk 0:00:41]} 29. f5 {[%clk 0:00:14]}  Rf4 {[%clk 0:00:38]} 30. Bf3 {[%clk 0:00:14]}  Ke7 {[%clk 0:00:33]} 31. Ra8 {[%clk 0:00:12]}  a6 {[%clk 0:00:32]} 32. Ra7+ {[%clk 0:00:12]}  Kf8 {[%clk 0:00:29]} 33. Bd5 {[%clk 0:00:10]}  Nd6 {[%clk 0:00:27]} 34. Bf3 {[%clk 0:00:10]}  Nxf5 {[%clk 0:00:23]} 35. Ra8+ {[%clk 0:00:10]}  Ke7 {[%clk 0:00:21]} 36. Ra7+ {[%clk 0:00:10]}  Kf8 {[%clk 0:00:18]} 37. Ra8+ {[%clk 0:00:10]}  Ke7 {[%clk 0:00:17]} 38. Ra7+ {[%clk 0:00:10]}  Ke6 {[%clk 0:00:13]} 39. Ne4 {[%clk 0:00:08]}  Ne3 {[%clk 0:00:08]} 40. Ng5+ {[%clk 0:00:07]}  Kf6 {[%clk 0:00:05]} 41. Ne4+ {[%clk 0:00:06]}  Kg7 {[%clk 0:00:05]} 42. Nd6 {[%clk 0:00:06]}  Nc4+ {[%clk 0:00:03]} 43. Nxc4 {[%clk 0:00:06]}  Bxc4 {[%clk 0:00:04]} 44. Rc7 {[%clk 0:00:06]}  Bb5 {[%clk 0:00:04]} 45. Rc8 {[%clk 0:00:06]}  Rf6 {[%clk 0:00:04]} 46. Rd8 {[%clk 0:00:06]}  Rf4 {[%clk 0:00:03]} 47. h3 {[%clk 0:00:05]}  h5 {[%clk 0:00:02]} 48. Rd6 {[%clk 0:00:05]}  h4 {[%clk 0:00:03]} 49. Rd8 {[%clk 0:00:05]}  Kf6 {[%clk 0:00:03]} 50. Rh8 {[%clk 0:00:05]}  Ke7 {[%clk 0:00:03]} 51. Rb8 {[%clk 0:00:05]}  Kd6 {[%clk 0:00:03]} 52. Rd8+ {[%clk 0:00:05]}  Kc5 {[%clk 0:00:03]} 53. Rc8+ {[%clk 0:00:05]}  Kb6 {[%clk 0:00:04]} 54. Rb8+ {[%clk 0:00:05]}  Ka5 {[%clk 0:00:04]} 55. Rc8 {[%clk 0:00:05]}  Ka4 {[%clk 0:00:05]} 56. Rc1 {[%clk 0:00:04]}  Kxa3 {[%clk 0:00:05]} 57. Ra1+ {[%clk 0:00:05]}  Kb2 {[%clk 0:00:06]} 58. Re1 {[%clk 0:00:05]}  Rf6 {[%clk 0:00:06]} 59. Re5 {[%clk 0:00:04]}  Rb6 {[%clk 0:00:05]} 60. Rd5 {[%clk 0:00:04]}  a5 {[%clk 0:00:06]} 61. Rxd4 {[%clk 0:00:05]}  a4 {[%clk 0:00:06]} 62. Rb4+ {[%clk 0:00:05]}  Ka3 {[%clk 0:00:07]} 63. Kc3 {[%clk 0:00:04]}  d2 {[%clk 0:00:05]} 64. Rb1 {[%clk 0:00:04]}  Ka2 {[%clk 0:00:03]} 65. Rb2+ {[%clk 0:00:04]}  Ka1 {[%clk 0:00:03]} 66. Rxd2 {[%clk 0:00:04]}  a3 {[%clk 0:00:02]} 67. Bd5 {[%clk 0:00:04]} 1-0


[Site "https://www.chess.com"]

[Event "Titled Tuesday Blitz June 14 Late 2022"]
[White "Riehle, Marco"]
[Black "Xiong, Jeffery"]
[WhiteFideId "12904392"]
[BlackFideId "2047640"]
[WhiteElo "2462"]
[BlackElo "2714"]
[Result "0-1"]
[Round "03"]
[TimeControl "180+1"]
[Date "2022.06.14"]
[WhiteClock "0:00:59"]
[BlackClock "0:01:45"]

1. e4 {[%clk 0:03:00]}  e6 {[%clk 0:02:58]} 2. c4 {[%clk 0:03:00]}  c5 {[%clk 0:02:56]} 3. Nf3 {[%clk 0:03:00]}  Nc6 {[%clk 0:02:53]} 4. Be2 {[%clk 0:03:01]}  Nf6 {[%clk 0:02:53]} 5. Nc3 {[%clk 0:03:01]}  Qb6 {[%clk 0:02:46]} 6. O-O {[%clk 0:02:59]}  Be7 {[%clk 0:02:46]} 7. d3 {[%clk 0:02:57]}  O-O {[%clk 0:02:46]} 8. h3 {[%clk 0:02:55]}  Rd8 {[%clk 0:02:41]} 9. e5 {[%clk 0:02:49]}  Ne8 {[%clk 0:02:41]} 10. Ne4 {[%clk 0:02:49]}  d6 {[%clk 0:02:41]} 11. exd6 {[%clk 0:02:49]}  Nxd6 {[%clk 0:02:42]} 12. Nxd6 {[%clk 0:02:47]}  Bxd6 {[%clk 0:02:43]} 13. Nd2 {[%clk 0:02:46]}  Bd7 {[%clk 0:02:41]} 14. Ne4 {[%clk 0:02:46]}  Nd4 {[%clk 0:02:40]} 15. Bg5 {[%clk 0:02:35]}  Re8 {[%clk 0:02:35]} 16. b3 {[%clk 0:02:33]}  Be5 {[%clk 0:02:32]} 17. Rb1 {[%clk 0:02:28]}  Bc6 {[%clk 0:02:32]} 18. f4 {[%clk 0:02:21]}  Bc7 {[%clk 0:02:32]} 19. Bh5 {[%clk 0:02:15]}  Bd8 {[%clk 0:02:07]} 20. Nd6 {[%clk 0:01:57]}  Rf8 {[%clk 0:02:07]} 21. Bxf7+ {[%clk 0:01:52]}  Rxf7 {[%clk 0:02:06]} 22. Nxf7 {[%clk 0:01:53]}  Kxf7 {[%clk 0:02:07]} 23. Qh5+ {[%clk 0:01:53]}  Kg8 {[%clk 0:02:07]} 24. Rbe1 {[%clk 0:01:50]}  Qc7 {[%clk 0:02:06]} 25. f5 {[%clk 0:01:43]}  Bxg5 {[%clk 0:01:58]} 26. Qxg5 {[%clk 0:01:40]}  h6 {[%clk 0:01:59]} 27. Qh4 {[%clk 0:01:20]}  exf5 {[%clk 0:01:49]} 28. Re7 {[%clk 0:01:03]}  Qd6 {[%clk 0:01:49]} 29. Rfe1 {[%clk 0:01:03]}  Qg6 {[%clk 0:01:48]} 30. Qf2 {[%clk 0:01:00]}  Nf3+ {[%clk 0:01:48]} 31. Kh1 {[%clk 0:00:59]}  Nxe1 {[%clk 0:01:49]} 32. Rxe1 {[%clk 0:00:59]}  Re8 {[%clk 0:01:50]} 33. Rxe8+ {[%clk 0:00:59]}  Qxe8 {[%clk 0:01:44]} 34. Qxc5 {[%clk 0:01:00]}  Qe2 {[%clk 0:01:43]} 35. Qg1 {[%clk 0:00:58]}  Qxd3 {[%clk 0:01:43]} 36. Kh2 {[%clk 0:00:59]}  Qd6+ {[%clk 0:01:43]} 37. Kh1 {[%clk 0:00:59]}  Qg3 {[%clk 0:01:43]} 38. Qf1 {[%clk 0:00:58]}  Qxh3+ {[%clk 0:01:43]} 39. Kg1 {[%clk 0:00:59]}  Qe3+ {[%clk 0:01:44]} 40. Kh1 {[%clk 0:00:59]}  f4 {[%clk 0:01:45]} 0-1


[Site "https://www.chess.com"]

[Event "Titled Tuesday Blitz June 14 Late 2022"]
[White "Salem, A.R. Saleh"]
[Black "Sohal, Tanraj"]
[WhiteFideId "9301348"]
[BlackFideId "2608499"]
[WhiteElo "2679"]
[BlackElo "2200"]
[Result "1-0"]
[Round "03"]
[TimeControl "180+1"]
[Date "2022.06.14"]
[WhiteClock "0:01:36"]
[BlackClock "0:00:16"]

1. d4 {[%clk 0:02:57]}  Nf6 {[%clk 0:02:51]} 2. c4 {[%clk 0:02:58]}  e6 {[%clk 0:02:46]} 3. Nc3 {[%clk 0:02:58]}  Bb4 {[%clk 0:02:38]} 4. a3 {[%clk 0:02:58]}  Bxc3+ {[%clk 0:02:37]} 5. bxc3 {[%clk 0:02:59]}  O-O {[%clk 0:02:37]} 6. f3 {[%clk 0:02:58]}  d5 {[%clk 0:02:37]} 7. cxd5 {[%clk 0:02:59]}  exd5 {[%clk 0:02:36]} 8. e3 {[%clk 0:02:59]}  c5 {[%clk 0:02:27]} 9. Ne2 {[%clk 0:02:58]}  Nc6 {[%clk 0:02:21]} 10. Ng3 {[%clk 0:02:58]}  Qa5 {[%clk 0:02:07]} 11. Bd2 {[%clk 0:02:58]}  cxd4 {[%clk 0:01:55]} 12. cxd4 {[%clk 0:02:58]}  Qd8 {[%clk 0:01:54]} 13. Bd3 {[%clk 0:02:58]}  a6 {[%clk 0:01:54]} 14. Rc1 {[%clk 0:02:57]}  Na5 {[%clk 0:01:53]} 15. O-O {[%clk 0:02:57]}  b5 {[%clk 0:01:54]} 16. Rc5 {[%clk 0:02:25]}  Nc4 {[%clk 0:01:53]} 17. Bc1 {[%clk 0:02:25]}  Re8 {[%clk 0:01:43]} 18. Re1 {[%clk 0:02:16]}  Bb7 {[%clk 0:01:42]} 19. Bb1 {[%clk 0:02:08]}  Rc8 {[%clk 0:01:39]} 20. Rxc8 {[%clk 0:02:09]}  Qxc8 {[%clk 0:01:38]} 21. e4 {[%clk 0:02:09]}  dxe4 {[%clk 0:01:35]} 22. fxe4 {[%clk 0:02:10]}  Qg4 {[%clk 0:01:35]} 23. Qd3 {[%clk 0:02:07]}  g6 {[%clk 0:01:17]} 24. Qf3 {[%clk 0:01:39]}  Qe6 {[%clk 0:01:08]} 25. Rf1 {[%clk 0:01:38]}  Nxe4 {[%clk 0:00:27]} 26. Nxe4 {[%clk 0:01:37]}  Bxe4 {[%clk 0:00:27]} 27. Bxe4 {[%clk 0:01:38]}  Qxe4 {[%clk 0:00:28]} 28. Qxf7+ {[%clk 0:01:39]}  Kh8 {[%clk 0:00:28]} 29. Bh6 {[%clk 0:01:35]}  Qxd4+ {[%clk 0:00:25]} 30. Kh1 {[%clk 0:01:35]}  Rg8 {[%clk 0:00:18]} 31. Qxg8+ {[%clk 0:01:35]}  Kxg8 {[%clk 0:00:16]} 32. Rf8# {[%clk 0:01:36]} 1-0


[Site "https://www.chess.com"]

[Event "Titled Tuesday Blitz June 14 Late 2022"]
[White "Salimova, Nurgyul"]
[Black "Kamsky, Gata"]
[WhiteFideId "2915138"]
[BlackFideId "2000024"]
[WhiteElo "2184"]
[BlackElo "2645"]
[Result "0-1"]
[Round "03"]
[TimeControl "180+1"]
[Date "2022.06.14"]
[WhiteClock "0:00:02"]
[BlackClock "0:00:10"]

1. d4 {[%clk 0:03:00]}  g6 {[%clk 0:02:58]} 2. Nf3 {[%clk 0:02:59]}  Bg7 {[%clk 0:02:55]} 3. Nc3 {[%clk 0:02:57]}  d6 {[%clk 0:02:53]} 4. Bf4 {[%clk 0:02:53]}  Nd7 {[%clk 0:02:49]} 5. Qd2 {[%clk 0:02:49]}  e5 {[%clk 0:02:48]} 6. dxe5 {[%clk 0:02:46]}  dxe5 {[%clk 0:02:47]} 7. Bg3 {[%clk 0:02:33]}  Nh6 {[%clk 0:02:17]} 8. O-O-O {[%clk 0:02:30]}  f6 {[%clk 0:02:15]} 9. e4 {[%clk 0:02:19]}  Nf7 {[%clk 0:02:07]} 10. Bc4 {[%clk 0:02:15]}  Nd6 {[%clk 0:02:05]} 11. Bb3 {[%clk 0:02:04]}  Nc5 {[%clk 0:02:03]} 12. Bd5 {[%clk 0:02:02]}  Ne6 {[%clk 0:01:51]} 13. h4 {[%clk 0:01:56]}  h5 {[%clk 0:01:49]} 14. Kb1 {[%clk 0:01:52]}  Qe7 {[%clk 0:01:33]} 15. Ne1 {[%clk 0:01:34]}  Bd7 {[%clk 0:01:30]} 16. f3 {[%clk 0:01:23]}  Bh6 {[%clk 0:01:28]} 17. Qf2 {[%clk 0:01:21]}  c6 {[%clk 0:01:26]} 18. Bb3 {[%clk 0:01:19]}  b5 {[%clk 0:01:15]} 19. Nd3 {[%clk 0:01:16]}  a5 {[%clk 0:01:10]} 20. a4 {[%clk 0:01:09]}  b4 {[%clk 0:01:06]} 21. Ne2 {[%clk 0:01:09]}  Nb7 {[%clk 0:00:58]} 22. f4 {[%clk 0:01:05]}  Nbc5 {[%clk 0:00:47]} 23. Nxc5 {[%clk 0:01:01]}  Nxc5 {[%clk 0:00:46]} 24. fxe5 {[%clk 0:00:54]}  fxe5 {[%clk 0:00:46]} 25. Bxe5 {[%clk 0:00:20]}  Qxe5 {[%clk 0:00:28]} 26. Qf7+ {[%clk 0:00:16]}  Kd8 {[%clk 0:00:29]} 27. Nd4 {[%clk 0:00:10]}  Kc8 {[%clk 0:00:26]} 28. Qxg6 {[%clk 0:00:08]}  Kc7 {[%clk 0:00:21]} 29. Nf3 {[%clk 0:00:06]}  Qe7 {[%clk 0:00:20]} 30. Bc4 {[%clk 0:00:04]}  Raf8 {[%clk 0:00:18]} 31. Qg3+ {[%clk 0:00:04]}  Bf4 {[%clk 0:00:18]} 32. Qf2 {[%clk 0:00:04]}  Kb7 {[%clk 0:00:17]} 33. e5 {[%clk 0:00:03]}  Bf5 {[%clk 0:00:15]} 34. Rhe1 {[%clk 0:00:03]}  Bg4 {[%clk 0:00:12]} 35. Qd4 {[%clk 0:00:03]}  Bxf3 {[%clk 0:00:11]} 36. gxf3 {[%clk 0:00:04]}  Bg3 {[%clk 0:00:11]} 37. Rg1 {[%clk 0:00:04]}  Rd8 {[%clk 0:00:11]} 38. Qe3 {[%clk 0:00:03]}  Rxd1+ {[%clk 0:00:11]} 39. Rxd1 {[%clk 0:00:04]}  Qxe5 {[%clk 0:00:11]} 40. Qd2 {[%clk 0:00:03]}  Bxh4 {[%clk 0:00:10]} 41. b3 {[%clk 0:00:02]}  Bf6 {[%clk 0:00:10]} 0-1


[Site "https://www.chess.com"]

[Event "Titled Tuesday Blitz June 14 Late 2022"]
[White "Song, Michael"]
[Black "Lashkin, Jegor"]
[WhiteFideId "2613190"]
[BlackFideId "13907808"]
[WhiteElo "2274"]
[BlackElo "2368"]
[Result "0-1"]
[Round "03"]
[TimeControl "180+1"]
[Date "2022.06.14"]
[WhiteClock "0:00:02"]
[BlackClock "0:00:29"]

1. d4 {[%clk 0:03:00]}  Nf6 {[%clk 0:02:59]} 2. c4 {[%clk 0:02:59]}  e6 {[%clk 0:03:00]} 3. Nc3 {[%clk 0:02:59]}  Bb4 {[%clk 0:03:00]} 4. e3 {[%clk 0:02:56]}  O-O {[%clk 0:02:59]} 5. Bd3 {[%clk 0:02:54]}  d5 {[%clk 0:02:59]} 6. cxd5 {[%clk 0:02:53]}  exd5 {[%clk 0:02:59]} 7. a3 {[%clk 0:02:54]}  Bd6 {[%clk 0:02:58]} 8. Qc2 {[%clk 0:02:54]}  a6 {[%clk 0:02:56]} 9. Nge2 {[%clk 0:02:48]}  Re8 {[%clk 0:02:56]} 10. O-O {[%clk 0:02:46]}  b6 {[%clk 0:02:51]} 11. b4 {[%clk 0:02:46]}  Bb7 {[%clk 0:02:48]} 12. Rb1 {[%clk 0:02:44]}  Nbd7 {[%clk 0:02:43]} 13. b5 {[%clk 0:02:40]}  Bf8 {[%clk 0:02:23]} 14. a4 {[%clk 0:02:35]}  g6 {[%clk 0:02:03]} 15. f3 {[%clk 0:02:28]}  axb5 {[%clk 0:01:56]} 16. axb5 {[%clk 0:02:27]}  Qe7 {[%clk 0:01:37]} 17. Nf4 {[%clk 0:00:54]}  Bg7 {[%clk 0:01:30]} 18. Bd2 {[%clk 0:00:49]}  Nf8 {[%clk 0:01:25]} 19. Rbe1 {[%clk 0:00:48]}  Rad8 {[%clk 0:01:21]} 20. Kh1 {[%clk 0:00:45]}  Ne6 {[%clk 0:01:20]} 21. Nce2 {[%clk 0:00:42]}  Ng5 {[%clk 0:01:13]} 22. Rc1 {[%clk 0:00:39]}  Rc8 {[%clk 0:01:13]} 23. Qb3 {[%clk 0:00:28]}  Qd7 {[%clk 0:01:03]} 24. Rc2 {[%clk 0:00:26]}  Bf8 {[%clk 0:00:48]} 25. Rfc1 {[%clk 0:00:25]}  Bd6 {[%clk 0:00:48]} 26. Ng3 {[%clk 0:00:12]}  h5 {[%clk 0:00:45]} 27. Nf1 {[%clk 0:00:11]}  h4 {[%clk 0:00:44]} 28. Bb4 {[%clk 0:00:10]}  h3 {[%clk 0:00:43]} 29. Bxd6 {[%clk 0:00:08]}  Qxd6 {[%clk 0:00:42]} 30. Ng3 {[%clk 0:00:08]}  hxg2+ {[%clk 0:00:42]} 31. Nxg2 {[%clk 0:00:07]}  Nxf3 {[%clk 0:00:41]} 32. Rf2 {[%clk 0:00:07]}  Ng5 {[%clk 0:00:38]} 33. Rcf1 {[%clk 0:00:07]}  Ng4 {[%clk 0:00:38]} 34. Rf4 {[%clk 0:00:07]}  Nxe3 {[%clk 0:00:37]} 35. Bxg6 {[%clk 0:00:06]}  Nxf1 {[%clk 0:00:33]} 36. Bxf7+ {[%clk 0:00:04]}  Nxf7 {[%clk 0:00:32]} 37. Nxf1 {[%clk 0:00:05]}  Re4 {[%clk 0:00:30]} 38. Qg3+ {[%clk 0:00:05]}  Kf8 {[%clk 0:00:30]} 39. Qh3 {[%clk 0:00:02]}  Rxf4 {[%clk 0:00:29]} 0-1


[Site "https://www.chess.com"]

[Event "Titled Tuesday Blitz June 14 Late 2022"]
[White "Tymrakiewicz, Rafal"]
[Black "Rustemov, Alexander"]
[WhiteFideId "1108832"]
[BlackFideId "4119002"]
[WhiteElo "2205"]
[BlackElo "2782"]
[Result "1-0"]
[Round "03"]
[TimeControl "180+1"]
[Date "2022.06.15"]
[WhiteClock "0:00:16"]
[BlackClock "0:00:09"]

1. d4 {[%clk 0:03:00]}  g6 {[%clk 0:02:57]} 2. Bg5 {[%clk 0:03:01]}  Bg7 {[%clk 0:02:56]} 3. e3 {[%clk 0:03:01]}  c5 {[%clk 0:02:56]} 4. c3 {[%clk 0:03:01]}  Qb6 {[%clk 0:02:54]} 5. Qb3 {[%clk 0:03:00]}  d6 {[%clk 0:02:52]} 6. Nd2 {[%clk 0:02:55]}  Be6 {[%clk 0:02:50]} 7. Bc4 {[%clk 0:02:55]}  Bxc4 {[%clk 0:02:47]} 8. Nxc4 {[%clk 0:02:54]}  Qa6 {[%clk 0:02:30]} 9. a4 {[%clk 0:02:42]}  Nd7 {[%clk 0:02:28]} 10. Qb5 {[%clk 0:02:41]}  Qc6 {[%clk 0:02:26]} 11. Nf3 {[%clk 0:02:33]}  Ngf6 {[%clk 0:02:25]} 12. O-O {[%clk 0:02:18]}  O-O {[%clk 0:02:23]} 13. Qxc6 {[%clk 0:02:19]}  bxc6 {[%clk 0:02:23]} 14. Rfd1 {[%clk 0:02:08]}  Rab8 {[%clk 0:02:21]} 15. Ra2 {[%clk 0:02:05]}  h6 {[%clk 0:02:00]} 16. Bh4 {[%clk 0:02:05]}  g5 {[%clk 0:02:00]} 17. Bg3 {[%clk 0:02:05]}  Ne4 {[%clk 0:01:55]} 18. Nfd2 {[%clk 0:02:05]}  Nxd2 {[%clk 0:01:54]} 19. Rxd2 {[%clk 0:02:03]}  f5 {[%clk 0:01:51]} 20. f3 {[%clk 0:01:49]}  cxd4 {[%clk 0:01:51]} 21. exd4 {[%clk 0:01:41]}  f4 {[%clk 0:01:41]} 22. Bf2 {[%clk 0:01:41]}  Nf6 {[%clk 0:01:42]} 23. Na5 {[%clk 0:01:38]}  Rfc8 {[%clk 0:01:40]} 24. b4 {[%clk 0:01:15]}  Nd5 {[%clk 0:01:38]} 25. Rac2 {[%clk 0:01:15]}  Kf7 {[%clk 0:01:36]} 26. Re2 {[%clk 0:01:14]}  e5 {[%clk 0:01:29]} 27. Nc4 {[%clk 0:01:11]}  Ke6 {[%clk 0:01:24]} 28. dxe5 {[%clk 0:01:11]}  dxe5 {[%clk 0:01:20]} 29. Bd4 {[%clk 0:01:02]}  Rb7 {[%clk 0:01:06]} 30. Bxe5 {[%clk 0:00:56]}  Bxe5 {[%clk 0:01:03]} 31. Rxe5+ {[%clk 0:00:55]}  Kf6 {[%clk 0:01:04]} 32. Re4 {[%clk 0:00:45]}  Rd7 {[%clk 0:00:57]} 33. g3 {[%clk 0:00:41]}  fxg3 {[%clk 0:00:55]} 34. hxg3 {[%clk 0:00:41]}  h5 {[%clk 0:00:54]} 35. Kf2 {[%clk 0:00:37]}  Rh8 {[%clk 0:00:54]} 36. Ne3 {[%clk 0:00:19]}  Ne7 {[%clk 0:00:47]} 37. Rc4 {[%clk 0:00:17]}  Rd6 {[%clk 0:00:46]} 38. Re2 {[%clk 0:00:16]}  Ng6 {[%clk 0:00:42]} 39. Rc5 {[%clk 0:00:15]}  Ne5 {[%clk 0:00:40]} 40. Rxe5 {[%clk 0:00:14]}  Kxe5 {[%clk 0:00:40]} 41. Nc4+ {[%clk 0:00:14]}  Kd5 {[%clk 0:00:41]} 42. Nxd6 {[%clk 0:00:14]}  Kxd6 {[%clk 0:00:42]} 43. f4 {[%clk 0:00:12]}  gxf4 {[%clk 0:00:39]} 44. gxf4 {[%clk 0:00:12]}  Kd5 {[%clk 0:00:38]} 45. Kf3 {[%clk 0:00:10]}  Rh7 {[%clk 0:00:34]} 46. Re5+ {[%clk 0:00:08]}  Kd6 {[%clk 0:00:29]} 47. Rg5 {[%clk 0:00:06]}  h4 {[%clk 0:00:29]} 48. Kg2 {[%clk 0:00:06]}  Rf7 {[%clk 0:00:27]} 49. f5 {[%clk 0:00:06]}  Ke5 {[%clk 0:00:23]} 50. Rh5 {[%clk 0:00:05]}  Rxf5 {[%clk 0:00:20]} 51. Rxh4 {[%clk 0:00:05]}  Kd5 {[%clk 0:00:18]} 52. Rd4+ {[%clk 0:00:04]}  Ke6 {[%clk 0:00:18]} 53. Kg3 {[%clk 0:00:04]}  Rf1 {[%clk 0:00:17]} 54. Kg4 {[%clk 0:00:03]}  Rc1 {[%clk 0:00:16]} 55. Rd3 {[%clk 0:00:03]}  Ke5 {[%clk 0:00:16]} 56. Kf3 {[%clk 0:00:02]}  a5 {[%clk 0:00:12]} 57. bxa5 {[%clk 0:00:01]}  Ra1 {[%clk 0:00:13]} 58. Ke3 {[%clk 0:00:01]}  Rxa4 {[%clk 0:00:12]} 59. Rd8 {[%clk 0:00:01]}  Rxa5 {[%clk 0:00:12]} 60. Kd3 {[%clk 0:00:01]}  Ra1 {[%clk 0:00:10]} 61. Kc4 {[%clk 0:00:01]}  Ra5 {[%clk 0:00:09]} 62. Rd7 {[%clk 0:00:01]}  Ke6 {[%clk 0:00:09]} 63. Rd8 {[%clk 0:00:01]}  Rh5 {[%clk 0:00:09]} 64. Rd1 {[%clk 0:00:01]}  Rg5 {[%clk 0:00:08]} 65. Rd2 {[%clk 0:00:01]}  Re5 {[%clk 0:00:08]} 66. Rd1 {[%clk 0:00:02]}  Rg5 {[%clk 0:00:05]} 67. Rd2 {[%clk 0:00:02]}  Ke7 {[%clk 0:00:06]} 68. Rd3 {[%clk 0:00:03]}  Rg2 {[%clk 0:00:06]} 69. Rd1 {[%clk 0:00:02]}  Rg5 {[%clk 0:00:05]} 70. Rd2 {[%clk 0:00:02]}  Ra5 {[%clk 0:00:05]} 71. Rd3 {[%clk 0:00:02]}  Re5 {[%clk 0:00:05]} 72. Rd2 {[%clk 0:00:03]}  Ke6 {[%clk 0:00:05]} 73. Rd3 {[%clk 0:00:03]}  Rh5 {[%clk 0:00:06]} 74. Rd2 {[%clk 0:00:03]}  Rh3 {[%clk 0:00:05]} 75. Rd3 {[%clk 0:00:03]}  Ke5 {[%clk 0:00:06]} 76. Rxh3 {[%clk 0:00:02]}  Kd6 {[%clk 0:00:02]} 77. Rh4 {[%clk 0:00:03]}  Kc7 {[%clk 0:00:02]} 78. Rh5 {[%clk 0:00:04]}  Kb6 {[%clk 0:00:03]} 79. Rg5 {[%clk 0:00:05]}  Kc7 {[%clk 0:00:03]} 80. Rh5 {[%clk 0:00:06]}  Kd6 {[%clk 0:00:04]} 81. Rh6+ {[%clk 0:00:06]}  Kd7 {[%clk 0:00:04]} 82. Kc5 {[%clk 0:00:07]}  Kc7 {[%clk 0:00:05]} 83. Rxc6+ {[%clk 0:00:07]}  Kd7 {[%clk 0:00:06]} 84. Rg6 {[%clk 0:00:06]}  Kc7 {[%clk 0:00:06]} 85. Rg1 {[%clk 0:00:07]}  Kd7 {[%clk 0:00:07]} 86. Ra1 {[%clk 0:00:06]}  Kc7 {[%clk 0:00:08]} 87. Ra7+ {[%clk 0:00:06]}  Kb8 {[%clk 0:00:07]} 88. Rh7 {[%clk 0:00:07]}  Kc8 {[%clk 0:00:07]} 89. Kd6 {[%clk 0:00:08]}  Kd8 {[%clk 0:00:07]} 90. c4 {[%clk 0:00:09]}  Kc8 {[%clk 0:00:07]} 91. c5 {[%clk 0:00:10]}  Kb8 {[%clk 0:00:07]} 92. c6 {[%clk 0:00:11]}  Ka8 {[%clk 0:00:07]} 93. Rh8+ {[%clk 0:00:12]}  Ka7 {[%clk 0:00:08]} 94. c7 {[%clk 0:00:13]}  Kb6 {[%clk 0:00:08]} 95. c8=Q {[%clk 0:00:14]}  Ka5 {[%clk 0:00:08]} 96. Qc6 {[%clk 0:00:14]}  Kb4 {[%clk 0:00:09]} 97. Rb8+ {[%clk 0:00:15]}  Ka3 {[%clk 0:00:09]} 98. Qa8# {[%clk 0:00:16]} 1-0


[Site "https://www.chess.com"]